bitfinex/quotes_BTCUSD_20251215
["timestamp","ask_amount","ask_price","bid_price","bid_amount"]
[1765841748164,0.30149711,86530.0,86529.0,0.1154928]
[1765841748404,0.27731371,86530.0,86529.0,0.1154928]
[1765841750220,0.2517616,86531.0,86529.0,0.1154928]
[1765841750424,0.0241834,86530.0,86529.0,0.1154928]
[1765841750777,0.25531711,86530.0,86529.0,0.1154928]
[1765841750924,0.27255371,86530.0,86529.0,0.1154928]
[1765841751753,0.23113371,86530.0,86529.0,0.1154928]
[1765841754152,0.29810371,86530.0,86529.0,0.1154928]
[1765841756100,0.23113793,86529.0,86526.0,0.2427004]
[1765841756303,0.25532328,86528.0,86526.0,0.01155721]
[1765841756475,0.23113988,86528.0,86525.0,0.24270385]
[1765841756672,0.0241834,86527.0,86525.0,0.24270385]
[1765841757122,0.0241834,86527.0,86526.0,0.00698911]
[1765841757476,0.0497334,86527.0,86525.0,0.24270385]
[1765841757675,0.01155842,86517.0,86514.0,0.04117742]
[1765841757876,0.01817,86515.0,86513.0,0.24945703]
[1765841758112,0.0241834,86514.0,86513.0,0.01828]
[1765841760077,0.0241834,86514.0,86513.0,0.36505912]
[1765841760237,0.25535985,86514.0,86513.0,0.13388]
[1765841760433,0.23117645,86514.0,86513.0,0.13388]
[1765841760772,0.23117636,86515.0,86514.0,0.1156]
[1765841760951,0.23117636,86515.0,86514.0,0.1166]
[1765841762173,0.23117636,86515.0,86514.0,0.1176]
[1765841762374,0.23117636,86515.0,86514.0,0.1166]
[1765841763541,0.23117636,86515.0,86514.0,0.1176]
[1765841764791,0.25679636,86515.0,86514.0,0.002]
[1765841765207,0.23117636,86515.0,86514.0,0.002]
[1765841765572,0.23117912,86513.0,86512.0,0.1156]
[1765841765770,0.23117912,86513.0,86512.0,0.13388]
[1765841766567,0.3555892,86513.0,86512.0,0.13388]
[1765841766773,0.27709912,86513.0,86512.0,0.13488]
[1765841766972,0.25147912,86513.0,86512.0,0.13488]
[1765841767964,0.27709912,86513.0,86512.0,0.13488]
[1765841768177,0.27709912,86513.0,86512.0,0.13588]
[1765841768178,0.25147912,86513.0,86512.0,0.13588]
[1765841771478,0.0203,86513.0,86512.0,0.13388]
[1765841771664,0.0241834,86513.0,86512.0,0.3660618]
[1765841771867,0.0241834,86513.0,86512.0,0.3670618]
[1765841772268,0.0241834,86516.0,86514.0,0.23117532]
[1765841772490,0.0241834,86516.0,86513.0,0.24273795]
[1765841772491,0.2553546,86516.0,86513.0,0.24273795]
[1765841772694,0.24272928,86517.0,86514.0,0.23117548]
[1765841772894,0.255356,86516.0,86513.0,0.24273795]
[1765841773114,0.24273115,86516.0,86513.0,0.01155895]
[1765841773314,0.2311746,86515.0,86513.0,0.24273775]
[1765841773497,0.0241834,86514.0,86513.0,0.24273775]
[1765841773853,0.0241834,86514.0,86512.0,0.36606158]
[1765841773998,0.0241834,86514.0,86512.0,0.36506158]
[1765841774785,0.0241834,86514.0,86513.0,0.23117912]
[1765841774950,0.04021,86513.0,86512.0,0.24946158]
[1765841775114,0.06051,86513.0,86512.0,0.01928]
[1765841775317,0.27566252,86513.0,86512.0,0.02028]
[1765841775517,0.25147912,86513.0,86512.0,0.02028]
[1765841775716,0.25147912,86513.0,86512.0,0.01928]
[1765841777241,0.29168912,86513.0,86512.0,0.01928]
[1765841777455,0.29168912,86513.0,86512.0,0.01828]
[1765841777658,0.25147912,86513.0,86512.0,0.01928]
[1765841777893,0.25147912,86513.0,86512.0,0.02028]
[1765841779350,0.28293686,86517.0,86512.0,0.02028]
[1765841779351,0.01155628,86533.0,86528.0,0.01155695]
[1765841779689,0.03185588,86536.0,86535.0,0.1156]
[1765841779690,0.0203,86536.0,86535.0,0.1156]
[1765841780659,0.2426727,86537.0,86535.0,0.1156]
[1765841780849,0.2426727,86537.0,86536.0,0.1156]
[1765841785305,0.2629727,86537.0,86536.0,0.1156]
[1765841785784,0.4352054,86537.0,86536.0,0.1156]
[1765841786178,0.3288027,86537.0,86536.0,0.1156]
[1765841790575,0.2426727,86537.0,86536.0,0.1156]
[1765841790778,0.03185535,86540.0,86536.0,0.12715588]
[1765841790980,0.23111501,86537.0,86536.0,0.1156]
[1765841791344,0.01155548,86539.0,86536.0,0.12715588]
[1765841791548,0.23111452,86538.0,86536.0,0.1156]
[1765841791751,0.24266648,86539.0,86536.0,0.35827329]
[1765841791933,0.23111501,86537.0,86536.0,0.1156]
[1765841792753,0.2311145,86538.0,86536.0,0.1156]
[1765841792959,0.2311145,86538.0,86536.0,0.34671675]
[1765841793170,0.24266254,86540.0,86539.0,0.1156]
[1765841793367,0.01155535,86540.0,86539.0,0.1156]
[1765841793666,0.24266235,86540.0,86539.0,0.1156]
[1765841794397,0.01155535,86540.0,86539.0,0.1156]
[1765841794597,0.24266091,86541.0,86540.0,0.1156]
[1765841795005,0.24266091,86541.0,86539.0,0.23110967]
[1765841795006,0.2503107,86543.0,86541.0,0.1156]
[1765841795178,0.02668,86542.0,86541.0,0.1156]
[1765841795560,0.02668,86542.0,86541.0,0.34670433]
[1765841795985,0.01155521,86541.0,86537.0,0.01155575]
[1765841796190,0.01921,86538.0,86537.0,0.12715575]
[1765841796391,0.04489,86538.0,86537.0,0.1156]
[1765841796571,0.31348234,86538.0,86537.0,0.1156]
[1765841797504,0.001,86542.0,86541.0,0.23110433]
[1765841797707,0.01155441,86547.0,86546.0,0.1156]
[1765841798060,0.01155441,86547.0,86541.0,0.07669807]
[1765841798061,0.0241834,86549.0,86548.0,0.23108564]
[1765841798232,0.0241834,86549.0,86548.0,0.1156]
[1765841798878,0.24263389,86551.0,86550.0,0.1156]
[1765841799317,0.24262873,86552.0,86551.0,0.1156]
[1765841799629,0.0002,86553.0,86552.0,0.1156]
[1765841800163,0.0002,86553.0,86552.0,0.34667496]
[1765841800931,0.0002,86553.0,86552.0,0.1156]
[1765841801533,0.0002,86553.0,86552.0,0.34667496]
[1765841803366,0.0002,86553.0,86552.0,0.41181782]
[1765841804773,0.0002,86553.0,86552.0,0.41281782]
[1765841807458,0.0002,86553.0,86552.0,0.41181782]
[1765841807788,0.0002,86553.0,86552.0,0.41481782]
[1765841811527,0.0002,86553.0,86552.0,0.70551782]
[1765841811726,0.0002,86553.0,86552.0,0.82040188]
[1765841813530,0.0002,86553.0,86552.0,0.8614596]
[1765841814157,0.0002,86553.0,86552.0,0.82040188]
[1765841819373,0.0002,86553.0,86552.0,0.70551782]
[1765841819912,0.0002,86553.0,86552.0,0.74656487]
[1765841820262,0.0002,86553.0,86552.0,0.70551782]
[1765841820659,0.0002,86553.0,86552.0,0.72379782]
[1765841821333,0.0002,86553.0,86552.0,0.76485132]
[1765841821543,0.0002,86553.0,86552.0,0.88118247]
[1765841822366,0.0002,86553.0,86552.0,0.74657132]
[1765841822495,0.0002,86553.0,86552.0,0.76485132]
[1765841822695,0.0002,86553.0,86552.0,0.74657132]
[1765841823032,0.0002,86553.0,86552.0,0.76485132]
[1765841823237,0.0002,86553.0,86552.0,0.72379782]
[1765841823914,0.0002,86553.0,86552.0,0.88121008]
[1765841824249,0.0002,86553.0,86552.0,0.84012897]
[1765841824583,0.0002,86553.0,86552.0,0.72379782]
[1765841827034,0.00721161,86553.0,86552.0,0.72379782]
[1765841827303,0.00721161,86553.0,86552.0,0.78525386]
[1765841828231,0.00721161,86553.0,86552.0,0.72379782]
[1765841832106,0.00721161,86553.0,86552.0,0.34967496]
[1765841832308,0.0640742,86553.0,86552.0,0.1186]
[1765841832509,0.35688989,86553.0,86552.0,0.003]
[1765841832734,0.33270649,86553.0,86552.0,0.003]
[1765841832941,0.3001339,86553.0,86552.0,0.002]
[1765841833147,0.3001339,86553.0,86544.0,0.13388]
[1765841833148,0.23109365,86545.0,86544.0,0.13388]
[1765841833319,0.27455365,86545.0,86544.0,0.13388]
[1765841833527,0.31887123,86545.0,86544.0,0.1156]
[1765841833709,0.23110166,86542.0,86541.0,0.1156]
[1765841833915,0.24267006,86538.0,86535.0,0.35827477]
[1765841834181,0.23111033,86539.0,86535.0,0.35827477]
[1765841834182,0.04246,86536.0,86535.0,0.35827477]
[1765841834492,0.04246,86536.0,86535.0,0.37655477]
[1765841834634,0.01917,86536.0,86535.0,0.37655477]
[1765841835469,0.01917,86536.0,86535.0,0.37655636]
[1765841836468,0.001,86542.0,86538.0,0.01155561]
[1765841836673,0.0251834,86542.0,86541.0,0.1156]
[1765841836894,0.001,86542.0,86541.0,0.1156]
[1765841837291,0.001,86542.0,86541.0,0.34670433]
[1765841839194,0.00766231,86542.0,86541.0,0.34670433]
[1765841840165,0.23876397,86542.0,86541.0,0.1156]
[1765841840372,0.27275298,86542.0,86541.0,0.1156]
[1765841840720,0.33360298,86542.0,86541.0,0.1156]
[1765841841504,0.33360298,86542.0,86535.0,0.1156]
[1765841841505,0.23111768,86536.0,86535.0,0.1156]
[1765841841714,0.23111768,86536.0,86535.0,0.13388]
[1765841841904,0.23111768,86536.0,86535.0,0.1156]
[1765841842107,0.23111768,86536.0,86535.0,0.13388]
[1765841842334,0.2426681,86538.0,86537.0,0.1156]
[1765841842506,0.2426681,86538.0,86525.0,0.01722]
[1765841842507,0.01155655,86531.0,86525.0,0.01722]
[1765841842760,0.24268758,86531.0,86530.0,0.1156]
[1765841843576,0.26597758,86531.0,86530.0,0.1156]
[1765841843777,0.26597758,86531.0,86521.0,0.1156]
[1765841843778,0.01155762,86523.0,86521.0,0.1156]
[1765841843986,0.24271264,86523.0,86522.0,0.01828]
[1765841844191,0.01155762,86523.0,86522.0,0.01828]
[1765841844353,0.25533581,86523.0,86522.0,0.01828]
[1765841844555,0.23115241,86523.0,86522.0,0.01828]
[1765841846271,0.23115508,86522.0,86521.0,0.1156]
[1765841846468,0.23115508,86522.0,86521.0,0.13388]
[1765841847454,0.29200508,86522.0,86521.0,0.1156]
[1765841847668,0.25444508,86522.0,86521.0,0.1166]
[1765841847913,0.23115508,86522.0,86521.0,0.1166]
[1765841848274,0.23115508,86522.0,86521.0,0.1176]
[1765841848884,0.23115508,86522.0,86521.0,0.1166]
[1765841849095,0.23115508,86522.0,86521.0,0.1176]
[1765841849301,0.23115508,86522.0,86521.0,0.1166]
[1765841849507,0.23115508,86522.0,86521.0,0.1176]
[1765841852563,0.23115285,86523.0,86521.0,0.1176]
[1765841852758,0.27834848,86522.0,86521.0,0.13588]
[1765841852962,0.02903698,86522.0,86521.0,0.13588]
[1765841853262,0.26136546,86522.0,86521.0,0.13588]
[1765841853460,0.26136546,86522.0,86521.0,0.13488]
[1765841853665,0.26136546,86522.0,86521.0,0.13588]
[1765841854066,0.00602698,86522.0,86521.0,0.05715]
[1765841854275,0.00602698,86522.0,86521.0,0.44068061]
[1765841856385,0.00602698,86522.0,86521.0,0.44168061]
[1765841857153,0.00602698,86522.0,86521.0,0.73238061]
[1765841857555,0.00602698,86522.0,86521.0,0.73138061]
[1765841857987,0.00602698,86522.0,86521.0,0.73238061]
[1765841858389,0.00602698,86522.0,86521.0,0.73138061]
[1765841858938,0.00602698,86522.0,86521.0,0.7746183]
[1765841859086,0.00602698,86522.0,86521.0,0.7756183]
[1765841859288,0.00602698,86522.0,86521.0,0.73338061]
[1765841859627,0.00602698,86522.0,86521.0,0.73538061]
[1765841861367,0.00602698,86522.0,86521.0,0.91353292]
[1765841861567,0.00602698,86522.0,86521.0,0.85171176]
[1765841864478,0.00602698,86522.0,86521.0,0.73538061]
[1765841865664,0.00602698,86522.0,86521.0,0.71710061]
[1765841865822,0.00602698,86522.0,86521.0,0.73538061]
[1765841866740,0.00602698,86522.0,86521.0,0.55412219]
[1765841866946,0.00602698,86522.0,86521.0,0.26342219]
[1765841866947,0.02903698,86522.0,86521.0,0.26342219]
[1765841867264,0.00602698,86522.0,86521.0,0.26342219]
[1765841867561,0.00602698,86522.0,86521.0,0.26142219]
[1765841868118,0.02903698,86522.0,86521.0,0.24414219]
[1765841868293,0.06462698,86522.0,86521.0,0.24414219]
[1765841868454,0.00602698,86522.0,86521.0,0.24214219]
[1765841868857,0.00602698,86522.0,86521.0,0.24414219]
[1765841869057,0.00602698,86522.0,86521.0,0.24114219]
[1765841869463,0.00602698,86522.0,86521.0,0.24314219]
[1765841869869,0.00602698,86522.0,86521.0,0.24214219]
[1765841870328,0.00602698,86522.0,86521.0,0.24314219]
[1765841870538,0.00602698,86522.0,86521.0,0.26142219]
[1765841871069,0.00602698,86522.0,86521.0,0.49132665]
[1765841871194,0.00602698,86522.0,86521.0,0.53255328]
[1765841871592,0.00602698,86522.0,86521.0,0.42716007]
[1765841874318,0.00602698,86522.0,86521.0,0.38593344]
[1765841874474,0.00602698,86522.0,86521.0,0.67663344]
[1765841874677,0.00602698,86522.0,86521.0,0.73845947]
[1765841874876,0.00602698,86522.0,86521.0,0.73849591]
[1765841875072,0.00602698,86522.0,86521.0,0.79296459]
[1765841876032,0.00602698,86522.0,86521.0,0.79196459]
[1765841876207,0.00602698,86522.0,86521.0,0.67463344]
[1765841876386,0.00602698,86522.0,86521.0,0.67863344]
[1765841876812,0.0392587,90060.0,86552.0,0.34667496]
[1765841876813,0.0002,86553.0,86552.0,0.34667496]
[1765841877128,0.0002,86553.0,86552.0,0.42929158]
[1765841877334,0.0002,86553.0,86552.0,0.46545158]
[1765841878093,0.0012,86553.0,86552.0,0.46545158]
[1765841879273,0.0012,86553.0,86552.0,0.46645158]
[1765841879409,0.0002,86553.0,86552.0,0.46645158]
[1765841880194,0.0002,86553.0,86552.0,0.40636496]
[1765841880416,0.0002,86553.0,86552.0,0.34767496]
[1765841880626,0.0002,86553.0,86552.0,0.34867496]
[1765841881233,0.0002,86553.0,86552.0,0.34767496]
[1765841881649,0.0002,86553.0,86552.0,0.34867496]
[1765841882491,0.00118571,86553.0,86552.0,0.34867496]
[1765841883274,0.00118571,86553.0,86552.0,0.36695496]
[1765841885308,0.00118571,86553.0,86552.0,0.7232994]
[1765841885539,0.00118571,86553.0,86552.0,0.72391226]
[1765841886237,0.00118571,86553.0,86552.0,0.61049226]
[1765841886939,0.00118571,86553.0,86552.0,0.66036731]
[1765841887497,0.00118571,86553.0,86552.0,0.70159874]
[1765841887931,0.00118571,86553.0,86552.0,0.70059874]
[1765841888341,0.00118571,86553.0,86552.0,0.66136731]
[1765841888674,0.00118571,86553.0,86552.0,0.81792989]
[1765841888877,0.00118571,86553.0,86552.0,0.81892989]
[1765841889081,0.00118571,86553.0,86552.0,0.83048043]
[1765841889367,0.00118571,86553.0,86552.0,0.789249]
[1765841891523,0.00118571,86553.0,86552.0,0.67291785]
[1765841897274,0.00118571,86553.0,86552.0,0.65463785]
[1765841897499,0.00118571,86553.0,86552.0,0.46955341]
[1765841897719,0.00118571,86553.0,86552.0,0.77853341]
[1765841900561,0.00118571,86553.0,86552.0,0.81962909]
[1765841900814,0.00118571,86553.0,86552.0,0.93596024]
[1765841900815,0.00098571,86553.0,86552.0,0.93596024]
[1765841901043,0.0002,86573.0,86572.0,0.2910244]
[1765841901192,0.0002,86573.0,86572.0,0.3315044]
[1765841901393,0.0002,86573.0,86572.0,0.3671444]
[1765841901605,0.0002,86573.0,86572.0,0.69317813]
[1765841901813,0.0001,86580.0,86579.0,0.58170572]
[1765841902010,0.0001,86580.0,86579.0,0.64561874]
[1765841902222,0.0001,86580.0,86579.0,0.59000128]
[1765841902421,0.0001,86580.0,86579.0,0.38132585]
[1765841902635,0.0001,86580.0,86579.0,0.36488289]
[1765841902846,0.0011,86580.0,86579.0,0.1156]
[1765841902996,0.0011,86580.0,86574.0,0.24256625]
[1765841902997,0.01155041,86577.0,86574.0,0.2657422]
[1765841903197,0.01155041,86577.0,86573.0,0.13388]
[1765841903198,0.0388,86575.0,86573.0,0.14543094]
[1765841903415,0.02287,86574.0,86573.0,0.37644975]
[1765841903796,0.02387,86574.0,86572.0,0.001]
[1765841903996,0.02287,86573.0,86572.0,0.23102073]
[1765841904260,0.0001,86580.0,86579.0,0.63730289]
[1765841904477,0.0001,86580.0,86579.0,0.76644128]
[1765841904628,0.0001,86580.0,86579.0,0.76344128]
[1765841906664,0.0001,86580.0,86579.0,0.76444128]
[1765841907068,0.0009581,86580.0,86579.0,0.76444128]
[1765841909549,0.0248281,86580.0,86579.0,0.001]
[1765841909750,0.31006603,86580.0,86579.0,0.001]
[1765841909949,0.29216833,86580.0,86579.0,0.001]
[1765841910550,0.29216833,86580.0,86570.0,0.02983134]
[1765841910551,0.23101058,86577.0,86573.0,0.01155094]
[1765841910752,0.001,86577.0,86576.0,0.2310109]
[1765841912003,0.02287,86577.0,86576.0,0.2310109]
[1765841912242,0.05735,86577.0,86574.0,0.35816691]
[1765841912445,0.02187,86575.0,86574.0,0.35816691]
[1765841912798,0.001,86577.0,86576.0,0.2310109]
[1765841913115,0.001,86577.0,86576.0,0.6590409]
[1765841913298,0.001,86577.0,86576.0,0.6923509]
[1765841913503,0.001,86577.0,86576.0,0.6933509]
[1765841913706,0.0001,86580.0,86579.0,0.63730289]
[1765841914014,0.0001,86580.0,86579.0,0.69234289]
[1765841914385,0.0001,86580.0,86579.0,0.65903289]
[1765841915025,0.0001,86580.0,86579.0,0.77536404]
[1765841915231,0.0001,86580.0,86579.0,0.85869243]
[1765841915435,0.0001,86580.0,86579.0,0.4063]
[1765841915608,0.0001,86580.0,86576.0,0.24256129]
[1765841915609,0.24255303,86579.0,86576.0,0.24256129]
[1765841915818,0.03903,86577.0,86576.0,0.03083054]
[1765841916077,0.03979278,86577.0,86576.0,0.03083054]
[1765841916277,0.03979278,86577.0,86576.0,0.26084144]
[1765841916470,0.03979278,86577.0,86576.0,0.02983054]
[1765841916614,0.03979278,86577.0,86576.0,0.26084144]
[1765841916813,0.23101355,86576.0,86573.0,0.2310179]
[1765841917013,0.02187,86574.0,86573.0,0.2310179]
[1765841917241,0.02187,86574.0,86573.0,0.24256884]
[1765841917439,0.05635,86574.0,86573.0,0.24256884]
[1765841917638,0.0413434,86577.0,86576.0,0.2310109]
[1765841917842,0.0242834,86580.0,86579.0,0.23100289]
[1765841918058,0.0001,86580.0,86579.0,0.26271733]
[1765841918625,0.0001,86580.0,86579.0,0.24098733]
[1765841919481,0.0001,86580.0,86579.0,0.24198733]
[1765841920023,0.0001,86580.0,86579.0,0.01098444]
[1765841920226,0.0001,86580.0,86579.0,0.001]
[1765841920227,0.05745,86580.0,86579.0,0.001]
[1765841920432,0.28845023,86580.0,86579.0,0.001]
[1765841921030,0.24255848,86578.0,86575.0,0.01155067]
[1765841921231,0.0241834,86577.0,86575.0,0.01155067]
[1765841921433,0.02187,86576.0,86574.0,0.23101398]
[1765841921625,0.0460534,86575.0,86574.0,0.23101398]
[1765841922025,0.001,86576.0,86575.0,0.23101357]
[1765841922421,0.02287,86576.0,86571.0,0.01828]
[1765841922633,0.26674764,86575.0,86574.0,0.001]
[1765841922866,0.24256424,86575.0,86574.0,0.001]
[1765841923074,0.24256424,86575.0,86571.0,0.24930365]
[1765841923075,0.23101774,86574.0,86571.0,0.24930365]
[1765841923297,0.03342067,86575.0,86572.0,0.23102122]
[1765841923495,0.03573407,86575.0,86572.0,0.23102122]
[1765841923712,0.03573407,86575.0,86573.0,0.2310183]
[1765841924094,0.0241834,86575.0,86574.0,0.23101624]
[1765841924375,0.03548,86576.0,86575.0,0.001]
[1765841924576,0.05820866,86576.0,86575.0,0.23101357]
[1765841924783,0.03548,86576.0,86575.0,0.23101357]
[1765841924981,0.001,86576.0,86575.0,0.23101357]
[1765841925853,0.001,86576.0,86571.0,0.02983121]
[1765841925854,0.23101357,86575.0,86571.0,0.26085531]
[1765841926055,0.24256424,86575.0,86572.0,0.2425702]
[1765841926946,0.03342094,86573.0,86569.0,0.01155147]
[1765841927131,0.0241834,86573.0,86572.0,0.23102157]
[1765841927311,0.0241834,86575.0,86573.0,0.23101797]
[1765841927513,0.0241834,86575.0,86574.0,0.23101624]
[1765841927759,0.24356211,86576.0,86574.0,0.23101624]
[1765841927965,0.001,86576.0,86575.0,0.23101357]
[1765841928613,0.001,86576.0,86575.0,0.29603801]
[1765841928813,0.02287,86576.0,86575.0,0.23101357]
[1765841929021,0.05808101,86576.0,86575.0,0.23101357]
[1765841929368,0.02360101,86576.0,86575.0,0.23101357]
[1765841929561,0.00173101,86576.0,86575.0,0.25274357]
[1765841929765,0.00173101,86576.0,86575.0,0.29603801]
[1765841930136,0.00173101,86576.0,86575.0,0.26272801]
[1765841930586,0.00173101,86576.0,86575.0,0.40382583]
[1765841931136,0.00073101,86576.0,86575.0,0.40382583]
[1765841931635,0.00073101,86576.0,86575.0,0.26272801]
[1765841931784,0.00073101,86576.0,86575.0,0.001]
[1765841931989,0.00073101,86576.0,86575.0,0.23301357]
[1765841932410,0.00073101,86576.0,86575.0,0.02028]
[1765841932573,0.00073101,86576.0,86575.0,0.01928]
[1765841932772,0.00073101,86576.0,86575.0,0.25029357]
[1765841933259,0.05708101,86576.0,86575.0,0.001]
[1765841933458,0.28809191,86576.0,86575.0,0.01828]
[1765841933613,0.23102257,86572.0,86571.0,0.01828]
[1765841934018,0.25289257,86572.0,86571.0,0.01828]
[1765841934246,0.02187,86572.0,86571.0,0.24930424]
[1765841934738,0.02287,86572.0,86571.0,0.24930424]
[1765841934923,0.02287,86572.0,86571.0,0.25030424]
[1765841935324,0.02287,86572.0,86571.0,0.25019409]
[1765841937789,0.05735,86572.0,86571.0,0.001]
[1765841937996,0.32424672,86572.0,86571.0,0.001]
[1765841938141,0.23105975,86558.0,86556.0,0.05938016]
[1765841938358,0.26505161,86557.0,86556.0,0.01828]
[1765841938537,0.06847,86557.0,86556.0,0.01828]
[1765841938782,0.06847,86557.0,86556.0,0.24934428]
[1765841939097,0.24260719,86560.0,86557.0,0.1156]
[1765841939293,0.23105859,86559.0,86557.0,0.1156]
[1765841939492,0.23105859,86559.0,86556.0,0.02983321]
[1765841940058,0.26553897,86558.0,86556.0,0.01828]
[1765841940402,0.03448,86558.0,86556.0,0.01928]
[1765841940608,0.01155268,86560.0,86557.0,0.24261469]
[1765841940798,0.23105658,86559.0,86557.0,0.01155308]
[1765841941011,0.28740894,86558.0,86556.0,0.01928]
[1765841941148,0.05635,86558.0,86556.0,0.02028]
[1765841941352,0.23106161,86557.0,86556.0,0.01828]
[1765841941544,0.24262657,86553.0,86546.0,0.27219079]
[1765841941744,0.02187,86547.0,86546.0,0.24937098]
[1765841942020,0.0241834,86552.0,86550.0,0.23107968]
[1765841942021,0.03364,86552.0,86550.0,0.23107968]
[1765841942211,0.01155147,86569.0,86560.0,0.01155268]
[1765841942389,0.01155161,86568.0,86564.0,0.24259494]
[1765841942585,0.01155161,86568.0,86564.0,0.24259483]
[1765841942889,0.23103492,86567.0,86566.0,0.1156]
[1765841943296,0.23103492,86567.0,86564.0,0.24259483]
[1765841943297,0.25316492,86567.0,86564.0,0.24259483]
[1765841943498,0.25316492,86567.0,86562.0,0.23104603]
[1765841943499,0.23104307,86564.0,86562.0,0.01155241]
[1765841943814,0.23104307,86564.0,86557.0,0.23106053]
[1765841943815,0.01155241,86562.0,86556.0,0.24261681]
[1765841944046,0.02213,86557.0,86556.0,0.01155321]
[1765841944388,0.02213,86557.0,86551.0,0.02153832]
[1765841944389,0.01155374,86552.0,86546.0,0.04110016]
[1765841944563,0.02213,86546.0,86544.0,0.01828]
[1765841944764,0.02301512,86552.0,86551.0,0.01412]
[1765841944765,0.24262901,86552.0,86551.0,0.01412]
[1765841945007,0.01155348,86554.0,86550.0,0.01155401]
[1765841945191,0.01155361,86553.0,86550.0,0.01155401]
[1765841945396,0.24261775,86556.0,86552.0,0.23107255]
[1765841945601,0.24261775,86556.0,86553.0,0.23107215]
[1765841945971,0.53364,86560.0,86553.0,0.23107215]
[1765841945972,0.24260777,86560.0,86555.0,0.01155334]
[1765841946140,0.00025431,86561.0,86560.0,0.2310536]
[1765841946820,0.00025431,86561.0,86560.0,0.4031536]
[1765841947266,0.00025431,86561.0,86560.0,0.3679236]
[1765841948030,0.00125431,86561.0,86560.0,0.3679236]
[1765841948814,0.00125431,86561.0,86560.0,0.3456536]
[1765841949220,0.00025431,86561.0,86560.0,0.3456536]
[1765841953854,0.00025431,86561.0,86560.0,0.4021536]
[1765841954836,0.00025431,86561.0,86560.0,0.3679236]
[1765841956055,0.00025431,86561.0,86560.0,0.4021536]
[1765841956667,0.00025431,86561.0,86560.0,0.40276646]
[1765841956865,0.00025431,86561.0,86560.0,0.74348485]
[1765841957383,0.00025431,86561.0,86560.0,0.72753485]
[1765841957682,0.00025431,86561.0,86560.0,0.43683485]
[1765841957882,0.00025431,86561.0,86560.0,0.47106485]
[1765841958228,0.00025431,86561.0,86560.0,0.47406485]
[1765841958882,0.00025431,86561.0,86560.0,0.45578485]
[1765841959079,0.00025431,86561.0,86560.0,0.47406485]
[1765841959280,0.00025431,86561.0,86560.0,0.47806485]
[1765841959600,0.00025431,86561.0,86560.0,0.47506485]
[1765841959798,0.00025431,86561.0,86560.0,0.47306485]
[1765841959954,0.00025431,86561.0,86560.0,0.47106485]
[1765841960156,0.00025431,86561.0,86560.0,0.47306485]
[1765841960357,0.00025431,86561.0,86560.0,0.47506485]
[1765841965540,0.00025431,86561.0,86560.0,0.47306485]
[1765841966041,0.00025431,86561.0,86560.0,0.47506485]
[1765841968925,0.00025431,86561.0,86560.0,0.76576485]
[1765841969128,0.00025431,86561.0,86560.0,0.8274151]
[1765841971584,0.00025431,86561.0,86560.0,0.76576485]
[1765841972156,0.00025431,86561.0,86560.0,0.8274151]
[1765841973120,0.00025431,86561.0,86560.0,0.76576485]
[1765841973709,0.00025431,86561.0,86560.0,0.74748485]
[1765841974023,0.00025431,86561.0,86560.0,0.882096]
[1765841974199,4.31e-06,86561.0,86560.0,0.882096]
[1765841974800,4.31e-06,86561.0,86560.0,0.80049111]
[1765841976944,4.31e-06,86561.0,86560.0,0.8834613]
[1765841977143,4.31e-06,86561.0,86560.0,0.80049111]
[1765841979710,4.31e-06,86561.0,86560.0,0.78221111]
[1765841979973,4.31e-06,86561.0,86560.0,0.80049111]
[1765841981263,4.31e-06,86561.0,86560.0,0.91682226]
[1765841981876,0.0001,86580.0,86579.0,0.23100289]
[1765841982082,0.0001,86580.0,86579.0,0.29434733]
[1765841982259,0.00070382,86580.0,86579.0,0.32520733]
[1765841983118,0.00270382,86580.0,86579.0,0.01828]
[1765841983315,0.23370405,86580.0,86579.0,0.01828]
[1765841983497,0.23370405,86580.0,86578.0,0.1156]
[1765841983498,0.23100289,86579.0,86578.0,0.1156]
[1765841983708,0.23110023,86580.0,86579.0,0.01828]
[1765841984004,0.23210023,86580.0,86579.0,0.002]
[1765841984162,0.0011,86580.0,86579.0,0.25128289]
[1765841984768,0.0011,86580.0,86579.0,0.25028289]
[1765841985330,0.0011,86580.0,86579.0,0.24928289]
[1765841986694,0.0011,86580.0,86579.0,0.27128289]
[1765841986894,0.0011,86580.0,86579.0,0.41774289]
[1765841987521,0.0011,86580.0,86579.0,0.38688289]
[1765841989239,0.0011,86580.0,86579.0,0.36488289]
[1765841989643,0.00170382,86580.0,86579.0,0.36488289]
[1765841990049,0.23270405,86580.0,86579.0,0.13388]
[1765841990184,0.28760405,86580.0,86579.0,0.1156]
[1765841990384,0.4039352,86580.0,86579.0,0.1156]
[1765841990586,0.24255928,86577.0,86576.0,0.1156]
[1765841990824,0.01155041,86577.0,86576.0,0.13388]
[1765841991157,0.31009163,86577.0,86576.0,0.13388]
[1765841991335,0.28590823,86577.0,86576.0,0.13388]
[1765841991739,0.02221,86577.0,86576.0,0.13388]
[1765841991942,0.0241834,86577.0,86576.0,0.3648909]
[1765841992145,0.0394534,86579.0,86578.0,0.23090857]
[1765841992347,0.0394534,86579.0,86576.0,0.13388]
[1765841992348,0.23100823,86577.0,86576.0,0.13388]
[1765841992547,0.25321823,86577.0,86576.0,0.1156]
[1765841992788,0.23102424,86571.0,86570.0,0.1156]
[1765841993016,0.23102424,86571.0,86570.0,0.13388]
[1765841993422,0.25323424,86571.0,86570.0,0.1156]
[1765841993587,0.28592424,86571.0,86570.0,0.13388]
[1765841994035,0.28592424,86571.0,86570.0,0.13488]
[1765841994216,0.3973051,86571.0,86570.0,0.13488]
[1765841994579,0.28592424,86571.0,86570.0,0.1166]
[1765841994730,0.28592424,86571.0,86570.0,0.13488]
[1765841994937,0.28592424,86571.0,86570.0,0.01928]
[1765841995881,0.28592424,86571.0,86570.0,0.01828]
[1765841996098,0.23102424,86571.0,86570.0,0.01828]
[1765841996293,0.23101624,86574.0,86570.0,0.01828]
[1765841996498,0.03573434,86573.0,86571.0,0.23102424]
[1765841996659,0.26675528,86573.0,86570.0,0.01828]
[1765841996847,0.24257188,86573.0,86570.0,0.01828]
[1765841997044,0.23102424,86571.0,86570.0,0.01828]
[1765841997485,0.24257188,86573.0,86570.0,0.01828]
[1765841997685,0.0241834,86572.0,86570.0,0.01828]
[1765841997886,0.0241834,86572.0,86571.0,0.23102424]
[1765841998695,0.03573434,86573.0,86571.0,0.23102424]
[1765841998906,0.0241834,86573.0,86571.0,0.23102424]
[1765841999314,0.0241834,86573.0,86572.0,0.34662157]
[1765841999493,0.01155081,86574.0,86573.0,0.1156]
[1765841999693,0.03573407,86575.0,86574.0,0.1156]